fUSD/lending_fUSD_20251220
["ID","MTS","AMOUNT","RATE_DAILY","PERIOD"]
[399290912,1766247019679,-1113.66,0.00041095,120]
[399290913,1766247019730,-1113.66,0.00041095,120]
[399290914,1766247019780,-1113.66,0.00041095,120]
[399290915,1766247019831,-1113.66,0.00041095,120]
[399290917,1766247019880,-1113.66,0.00041095,120]
[399290918,1766247019931,-1113.66,0.00041095,120]
[399290919,1766247019986,-1113.66,0.00041095,120]
[399290920,1766247020036,-1113.66,0.00041095,120]
[399290921,1766247020084,-1113.66,0.00041095,120]
[399290922,1766247020132,-1113.66,0.00041095,120]
[399290923,1766247020182,-1113.66,0.00041095,120]
[399290924,1766247020232,-1113.87333073,0.00041095,120]
[399290925,1766247020282,-500.0,0.00041095,120]
[399290926,1766247020331,-513.42202539,0.00041095,120]
[399290927,1766247020384,-10694.96,0.00041095,120]
[399290928,1766247020438,-10694.96,0.00041095,120]
[399290929,1766247020489,-10694.96,0.00041095,120]
[399290930,1766247020537,-10694.96,0.00041095,120]
[399290931,1766247020586,-10694.96,0.00041095,120]
[399290932,1766247020636,-10694.96,0.00041095,120]
[399290933,1766247020686,-10694.96,0.00041095,120]
[399290934,1766247020735,-10694.96,0.00041095,120]
[399290935,1766247020786,-10694.96,0.00041095,120]
[399290936,1766247020837,-10694.96,0.00041095,120]
[399290937,1766247020891,-10694.96,0.00041095,120]
[399290938,1766247020941,-10694.96,0.00041095,120]
[399290939,1766247020992,-10694.96,0.00041095,120]
[399290940,1766247021043,-10694.96,0.00041095,120]
[399290941,1766247021093,-10694.96,0.00041095,120]
[399290942,1766247021143,-10694.96,0.00041095,120]
[399290943,1766247021194,-10694.96,0.00041095,120]
[399290944,1766247021247,-10694.96,0.00041095,120]
[399290945,1766247021296,-10694.96,0.00041095,120]
[399290946,1766247021347,-10694.96,0.00041095,120]
[399290947,1766247021397,-10694.96,0.00041095,120]
[399290948,1766247021449,-10694.96,0.00041095,120]
[399290949,1766247021502,-10694.96,0.00041095,120]
[399290950,1766247021552,-10695.06887997,0.00041095,120]
[399290951,1766247021603,-488.58,0.00041095,120]
[399290952,1766247021654,-500.0,0.00041095,120]
[399290953,1766247021705,-500.0,0.00041095,120]
[399290954,1766247021754,-182.63214894,0.00041095,120]
[399290955,1766247021803,-500.0,0.00041095,120]
[399290956,1766247021853,-500.0,0.00041095,120]
[399290957,1766247021904,-316.79573834,0.00041095,120]
[399290958,1766247021955,-529.79843508,0.00041095,120]
[399290959,1766247022008,-500.0,0.00041095,120]
[399290960,1766247022060,-500.0,0.00041095,120]
[399290961,1766247022111,-500.0,0.00041095,120]
[399290962,1766247022161,-505.81968275,0.00041095,120]
[399290963,1766247022213,-505.45254641,0.00041095,120]
[399290964,1766247022267,-500.0,0.00041095,120]
[399290965,1766247022319,-500.0,0.00041095,120]
[399290966,1766247022368,-501.29,0.00041095,120]
[399290967,1766247022418,-500.0,0.00041095,120]
[399290968,1766247022466,-500.0,0.00041095,120]
[399290969,1766247022514,-500.0,0.00041095,120]
[399290970,1766247022562,-238.2117179,0.00041095,120]
[399290971,1766247022608,-500.0,0.00041095,120]
[399290972,1766247022654,-500.95607237,0.00041095,120]
[399290973,1766247022703,-500.0,0.00041095,120]
[399290974,1766247022753,-390.73499761,0.00041095,120]
[399290975,1766247022804,-500.0,0.00041095,120]
[399290976,1766247022855,-500.0,0.00041095,120]
[399290977,1766247022907,-452.93,0.00041095,120]
[399290978,1766247023117,-500.0,0.00041095,120]
[399290979,1766247023171,-500.0,0.00041095,120]
[399290980,1766247023226,-540.20686095,0.00041095,120]
[399290981,1766247023280,-500.0,0.00041095,120]
[399290982,1766247023334,-500.0,0.00041095,120]
[399290983,1766247023386,-500.0,0.00041095,120]
[399290984,1766247023438,-500.0,0.00041095,120]
[399290985,1766247023492,-500.0,0.00041095,120]
[399290986,1766247023547,-500.0,0.00041095,120]
[399290987,1766247023603,-500.0,0.00041095,120]
[399290988,1766247023656,-479.6817634,0.00041095,120]
[399290989,1766247023708,-500.0,0.00041095,120]
[399290990,1766247023760,-517.80594992,0.00041095,120]
[399290991,1766247023812,-500.0,0.00041095,120]
[399290992,1766247023865,-500.0,0.00041095,120]
[399290993,1766247023919,-500.0,0.00041095,120]
[399290994,1766247023973,-511.66546756,0.00041095,120]
[399290995,1766247024025,-521.20400427,0.00041095,120]
[399290996,1766247024079,-508.20216886,0.00041095,120]
[399290997,1766247024132,-500.0,0.00041095,120]
[399290998,1766247024187,-506.85633431,0.00041095,120]
[399290999,1766247024242,-500.0,0.00041095,120]
[399291000,1766247024296,-500.0,0.00041095,120]
[399291001,1766247024348,-161.70238336,0.00041095,120]
[399291002,1766247024402,-2083.33,0.00041095,120]
[399291003,1766247024456,-2083.33,0.00041095,120]
[399291004,1766247024509,-2083.33,0.00041095,120]
[399291005,1766247024566,-2083.33,0.00041095,120]
[399291006,1766247024616,-2083.33,0.00041095,120]
[399291007,1766247024668,-2083.33,0.00041095,120]
[399291008,1766247024719,-2083.33,0.00041095,120]
[399291009,1766247024769,-2083.33,0.00041095,120]
[399291010,1766247024821,-2083.33,0.00041095,120]
[399291011,1766247024873,-2083.33,0.00041095,120]
[399291012,1766247024925,-2083.33,0.00041095,120]
[399291013,1766247024977,-2083.33,0.00041095,120]
[399291014,1766247025031,-2083.33,0.00041095,120]
[399291015,1766247025082,-2083.33,0.00041095,120]
[399291016,1766247025133,-2083.33,0.00041095,120]
[399291017,1766247025184,-2083.33,0.00041095,120]
[399291018,1766247025238,-2083.33,0.00041095,120]
[399291019,1766247025290,-2083.33,0.00041095,120]
[399291020,1766247025354,-2083.33,0.00041095,120]
[399291021,1766247025407,-2083.33,0.00041095,120]
[399291022,1766247025459,-2083.33,0.00041095,120]
[399291023,1766247025511,-2083.33,0.00041095,120]
[399291024,1766247025563,-2083.33,0.00041095,120]
[399291025,1766247025616,-2083.41,0.00041095,120]
[399291026,1766247025669,-273.21646171,0.00041095,120]
[399291027,1766247025722,-294.21553204,0.00041095,60]
[399291028,1766247025775,-299.09,0.00041095,120]
[399291029,1766247025830,-322.41045166,0.00041095,120]
[399291030,1766247025884,-500.0,0.00041095,120]
[399291031,1766247025938,-500.0,0.00041095,120]
[399291032,1766247025993,-500.0,0.00041095,120]
[399291033,1766247026047,-500.0,0.00041095,120]
[399291034,1766247026106,-500.0,0.00041095,120]
[399291035,1766247026161,-500.0,0.00041095,120]
[399291036,1766247026216,-500.0,0.00041095,120]
[399291037,1766247026271,-500.0,0.00041095,120]
[399291038,1766247026325,-500.0,0.00041095,120]
[399291039,1766247026378,-500.0,0.00041095,120]
[399291040,1766247026433,-169.51,0.00041095,120]
[399291041,1766247026490,-500.0,0.00041095,120]
[399291042,1766247026544,-500.0,0.00041095,120]
[399291043,1766247026594,-500.0,0.00041095,120]
[399291044,1766247026646,-500.0,0.00041095,120]
[399291045,1766247026697,-500.0,0.00041095,120]
[399291046,1766247026748,-500.0,0.00041095,120]
[399291047,1766247026803,-500.0,0.00041095,120]
[399291048,1766247026855,-500.0,0.00041095,120]
[399291049,1766247026908,-500.0,0.00041095,120]
[399291050,1766247026962,-500.0,0.00041095,120]
[399291051,1766247027014,-500.0,0.00041095,120]
[399291052,1766247027067,-500.0,0.00041095,120]
[399291053,1766247027121,-500.0,0.00041095,120]
[399291054,1766247027174,-638.13601906,0.00041095,120]
[399291055,1766247027227,-500.0,0.00041095,120]
[399291056,1766247027283,-500.0,0.00041095,120]
[399291057,1766247027336,-500.0,0.00041095,120]
[399291058,1766247027388,-511.4,0.00041095,120]
[399291059,1766247027441,-500.0,0.00041095,120]
[399291060,1766247027492,-500.0,0.00041095,120]
[399291061,1766247027544,-500.0,0.00041095,120]
[399291062,1766247027873,-500.0,0.00041095,120]
[399291063,1766247027935,-500.0,0.00041095,120]
[399291064,1766247027987,-500.0,0.00041095,120]
[399291065,1766247028038,-500.0,0.00041095,120]
[399291066,1766247028089,-391.4833537,0.00041095,120]
[399291067,1766247028144,-500.0,0.00041095,120]
[399291068,1766247028198,-500.0,0.00041095,120]
[399291069,1766247028254,-500.0,0.00041095,120]
[399291070,1766247028308,-500.0,0.00041095,120]
[399291071,1766247028363,-500.0,0.00041095,120]
[399291072,1766247028417,-500.0,0.00041095,120]
[399291073,1766247028472,-500.0,0.00041095,120]
[399291074,1766247028528,-500.0,0.00041095,120]
[399291075,1766247028581,-500.0,0.00041095,120]
[399291076,1766247028634,-500.0,0.00041095,120]
[399291077,1766247028687,-500.0,0.00041095,120]
[399291078,1766247028740,-500.0,0.00041095,120]
[399291079,1766247028793,-500.0,0.00041095,120]
[399291080,1766247028846,-605.44,0.00041095,120]
[399291081,1766247028899,-500.0,0.00041095,120]
[399291082,1766247028951,-419.20812862,0.00041095,120]
[399291083,1766247029009,-500.0,0.00041095,120]
[399291084,1766247029063,-500.0,0.00041095,120]
[399291085,1766247029115,-500.0,0.00041095,120]
[399291086,1766247029164,-500.0,0.00041095,120]
[399291087,1766247029215,-500.0,0.00041095,120]
[399291088,1766247029267,-500.0,0.00041095,120]
[399291089,1766247029319,-500.0,0.00041095,120]
[399291090,1766247029368,-500.0,0.00041095,120]
[399291091,1766247029417,-522.37,0.00041095,120]
[399291093,1766247029467,-570.0109066,0.00041095,120]
[399291096,1766247029517,-500.0,0.00041095,120]
[399291098,1766247029565,-496.1,0.00041095,120]
[399291101,1766247029615,-500.0,0.00041095,120]
[399291103,1766247029663,-500.0,0.00041095,120]
[399291106,1766247029711,-500.0,0.00041095,120]
[399291109,1766247029759,-500.0,0.00041095,120]
[399291111,1766247029807,-500.0,0.00041095,120]
[399291114,1766247029856,-349.65490664,0.00041095,120]
[399291116,1766247029907,-575.57769879,0.00041095,120]
[399291119,1766247029960,-500.0,0.00041095,120]
[399291122,1766247030012,-500.0,0.00041095,120]
[399291125,1766247030063,-155.356129,0.00041095,120]
[399291127,1766247030113,-620.17678195,0.00041095,120]
[399291130,1766247030165,-549.16861273,0.00041095,120]
[399291133,1766247030215,-500.0,0.00041095,120]
[399291136,1766247030267,-491.03762922,0.00041095,120]
[399291138,1766247030319,-574.59868549,0.00041095,120]
[399291141,1766247030370,-552.73607138,0.00041095,120]
[399291144,1766247030421,-500.0,0.00041095,120]
[399291147,1766247030471,-500.0,0.00041095,120]
[399291150,1766247030521,-406.45728454,0.00041095,120]
[399291152,1766247030570,-500.0,0.00041095,120]
[399291155,1766247030618,-500.0,0.00041095,120]
[399291158,1766247030666,-500.0,0.00041095,120]
[399291161,1766247030715,-500.0,0.00041095,120]
[399291164,1766247030763,-500.0,0.00041095,120]
[399291166,1766247030812,-350.95,0.00041095,120]
[399291167,1766247030862,-534.68,0.00041095,120]
[399291168,1766247030911,-500.0,0.00041095,120]
[399291169,1766247030963,-500.0,0.00041095,120]
[399291170,1766247031012,-489.24152523,0.00041095,120]
[399291171,1766247031062,-500.0,0.00041095,120]
[399291172,1766247031112,-500.0,0.00041095,120]
[399291173,1766247031163,-500.0,0.00041095,120]
[399291174,1766247031214,-500.0,0.00041095,120]
[399291180,1766247031265,-452.43194065,0.00041095,120]
[399291184,1766247031319,-500.0,0.00041095,120]
[399291185,1766247031368,-500.0,0.00041095,120]
[399291187,1766247031417,-500.0,0.00041095,120]
[399291189,1766247031466,-279.86935439,0.00041095,120]
[399291192,1766247031516,-516.4395295,0.00041095,120]
[399291196,1766247031565,-500.0,0.00041095,120]
[399291199,1766247031613,-500.0,0.00041095,120]
[399291203,1766247031661,-500.0,0.00041095,120]
[399291211,1766247031708,-500.0,0.00041095,120]
[399291220,1766247031756,-500.0,0.00041095,120]
[399291228,1766247031803,-291.89290074,0.00041095,120]
[399291233,1766247031851,-500.0,0.00041095,120]
[399291236,1766247031899,-522.42689326,0.00041095,120]
[399291239,1766247031946,-500.0,0.00041095,120]
[399291242,1766247031999,-500.0,0.00041095,120]
[399291245,1766247032050,-500.0,0.00041095,120]
[399291248,1766247032100,-500.0,0.00041095,120]
[399291251,1766247032149,-500.0,0.00041095,120]
[399291255,1766247032198,-315.87322142,0.00041095,120]
[399291258,1766247032253,-500.0,0.00041095,120]
[399291261,1766247032303,-613.13658441,0.00041095,120]
[399291263,1766247032354,-500.0,0.00041095,120]
[399291267,1766247032402,-500.0,0.00041095,120]
[399291270,1766247032450,-500.0,0.00041095,120]
[399291273,1766247032499,-324.17607895,0.00041095,120]
[399291276,1766247032545,-500.0,0.00041095,120]
[399291279,1766247032592,-601.24934404,0.00041095,120]
[399291282,1766247032639,-500.0,0.00041095,120]
[399291285,1766247032688,-500.0,0.00041095,120]
[399291289,1766247032738,-500.0,0.00041095,120]
[399291292,1766247032785,-340.27260856,0.00041095,120]
[399291295,1766247032835,-500.0,0.00041095,120]
[399291298,1766247032884,-500.0,0.00041095,120]
[399291301,1766247032932,-500.0,0.00041095,120]
[399291304,1766247032982,-595.98888245,0.00041095,120]
[399291307,1766247033030,-500.0,0.00041095,120]
[399291310,1766247033082,-500.0,0.00041095,120]
[399291313,1766247033133,-255.62888256,0.00041095,120]
[399291316,1766247033181,-591.82188441,0.00041095,120]
[399291319,1766247033236,-579.96997291,0.00041095,120]
[399291322,1766247033299,-500.0,0.00041095,120]
[399291326,1766247033357,-500.0,0.00041095,120]
[399291329,1766247033417,-500.0,0.00041095,120]
[399291333,1766247033476,-500.0,0.00041095,120]
[399291336,1766247033535,-500.0,0.00041095,120]
[399291337,1766247033589,-500.0,0.00041095,120]
[399291338,1766247033647,-500.0,0.00041095,120]
[399291340,1766247033704,-500.0,0.00041095,120]
[399291343,1766247033762,-286.65381052,0.00041095,120]
[399291346,1766247033820,-500.0,0.00041095,120]
[399291350,1766247033877,-500.0,0.00041095,120]
[399291353,1766247033936,-500.0,0.00041095,120]
[399291356,1766247033994,-630.97706623,0.00041095,120]
[399291360,1766247034052,-500.0,0.00041095,120]
[399291363,1766247034111,-500.0,0.00041095,120]
[399291366,1766247034168,-500.0,0.00041095,120]
[399291370,1766247034225,-500.0,0.00041095,120]
[399291373,1766247034281,-178.59108909,0.00041095,120]
[399291376,1766247034338,-500.0,0.00041095,120]
[399291379,1766247034393,-409.03235924,0.00041095,120]
[399291383,1766247034444,-500.0,0.00041095,120]
[399291386,1766247034503,-500.0,0.00041095,120]
[399291389,1766247034556,-445.67260118,0.00041095,120]
[399291392,1766247034607,-500.0,0.00041095,120]
[399291396,1766247034663,-500.0,0.00041095,120]
[399291399,1766247034716,-500.0,0.00041095,120]
[399291402,1766247034770,-500.0,0.00041095,120]
[399291406,1766247034823,-500.0,0.00041095,120]
[399291409,1766247034877,-189.7479503,0.00041095,120]
[399291412,1766247034932,-500.0,0.00041095,120]
[399291415,1766247034993,-368.07797944,0.00041095,120]
[399291419,1766247035050,-454.64423999,0.00041095,120]
[399291422,1766247035108,-500.0,0.00041095,120]
[399291426,1766247035165,-500.0,0.00041095,120]
[399291429,1766247035224,-500.0,0.00041095,120]
[399291433,1766247035281,-500.0,0.00041095,120]
[399291436,1766247035338,-500.0,0.00041095,120]
[399291439,1766247035397,-306.11579338,0.00041095,120]
[399291443,1766247035455,-500.0,0.00041095,120]
[399291446,1766247035511,-500.0,0.00041095,120]
[399291450,1766247035568,-500.0,0.00041095,120]
[399291453,1766247035623,-500.0,0.00041095,120]
[399291456,1766247035680,-245.52381947,0.00041095,120]
[399291460,1766247035741,-619.21154662,0.00041095,120]
[399291463,1766247035800,-505.06996964,0.00041095,120]
[399291467,1766247035857,-515.22,0.00041095,120]
[399291470,1766247035913,-508.55474022,0.00041095,120]
[399291474,1766247035971,-504.92597546,0.00041095,120]
[399291476,1766247036028,-500.0,0.00041095,120]
[399291477,1766247036083,-500.0,0.00041095,120]
[399291478,1766247036143,-500.0,0.00041095,120]
[399291480,1766247036200,-441.82651963,0.00041095,120]
[399291484,1766247036258,-500.0,0.00041095,120]
[399291487,1766247036313,-500.0,0.00041095,120]
[399291490,1766247036368,-500.0,0.00041095,120]
[399291493,1766247036423,-279.81401812,0.00041095,120]
[399291523,1766247037109,-500.0,0.00041095,120]
[399291526,1766247037165,-625.87435021,0.00041095,120]
[399291530,1766247037217,-500.0,0.00041095,120]
[399291533,1766247037270,-251.94806982,0.00041095,120]
[399291536,1766247037322,-500.0,0.00041095,120]
[399291539,1766247037373,-500.0,0.00041095,120]
[399291542,1766247037430,-500.0,0.00041095,120]
[399291545,1766247037481,-366.28973048,0.00041095,120]
[399291548,1766247037533,-500.0,0.00041095,120]
[399291551,1766247037585,-174.35859928,0.00041095,120]
[399291554,1766247037637,-547.62661821,0.00041095,120]
[399291557,1766247037689,-500.0,0.00041095,120]
[399291560,1766247037742,-316.65224492,0.00041095,120]
[399291563,1766247037794,-503.40964175,0.00041095,120]
[399291565,1766247037847,-500.0,0.00041095,120]
[399291566,1766247037898,-501.10926075,0.00041095,120]
[399291567,1766247037949,-500.0,0.00041095,120]
[399291568,1766247038002,-504.62932597,0.00041095,120]
[399291569,1766247038058,-274.65430865,0.00041095,120]
[399291570,1766247038112,-500.0,0.00041095,120]
[399291571,1766247038164,-500.0,0.00041095,120]
[399291572,1766247038217,-500.0,0.00041095,120]
[399291573,1766247038277,-336.87,0.00041095,120]
[399291574,1766247038330,-502.25588471,0.00041095,120]
[399291575,1766247038384,-500.0,0.00041095,120]
[399291576,1766247038438,-405.66887065,0.00041095,120]
[399291577,1766247038491,-605.21914007,0.00041095,120]
[399291578,1766247038543,-500.0,0.00041095,120]
[399291579,1766247038597,-500.0,0.00041095,120]
[399291580,1766247038651,-499.46774225,0.00041095,120]
[399291581,1766247038703,-504.30418176,0.00041095,120]
[399291582,1766247038758,-156.63783385,0.00041095,120]
[399291583,1766247038812,-508.92860194,0.00041095,120]
[399291584,1766247038865,-500.0,0.00041095,120]
[399291585,1766247038918,-500.0,0.00041095,120]
[399291586,1766247038969,-500.0,0.00041095,120]
[399291587,1766247039029,-500.0,0.00041095,120]
[399291588,1766247039084,-500.0,0.00041095,120]
[399291589,1766247039138,-500.0,0.00041095,120]
[399291591,1766247039194,-500.0,0.00041095,120]
[399291592,1766247039249,-464.75464011,0.00041095,120]
[399291593,1766247039307,-508.09393724,0.00041095,120]
[399291594,1766247039360,-506.55249943,0.00041095,120]
[399291595,1766247039413,-500.0,0.00041095,120]
[399291596,1766247039472,-336.27380417,0.00041095,120]
[399291599,1766247039526,-500.0,0.00041095,120]
[399291600,1766247039580,-585.33056771,0.00041095,120]
[399291601,1766247039631,-500.0,0.00041095,120]
[399291602,1766247039682,-425.60773564,0.00041095,120]
[399291603,1766247039736,-500.0,0.00041095,120]
[399291604,1766247039789,-500.0,0.00041095,120]
[399291610,1766247039846,-500.0,0.00041095,120]
[399291616,1766247039900,-500.0,0.00041095,120]
[399291623,1766247039953,-500.0,0.00041095,120]
[399291629,1766247040010,-500.0,0.00041095,120]
[399291636,1766247040064,-183.84,0.00041095,120]
[399291642,1766247040116,-500.0,0.00041095,120]
[399291648,1766247040174,-500.0,0.00041095,120]
[399291656,1766247040237,-500.0,0.00041095,120]
[399291663,1766247040289,-161.41,0.00041095,120]
[399291670,1766247040342,-936.39,0.00041095,120]
[399291676,1766247040393,-936.39,0.00041095,120]
[399291683,1766247040444,-936.39,0.00041095,120]
[399291689,1766247040496,-936.39,0.00041095,120]
[399291695,1766247040546,-936.39,0.00041095,120]
[399291702,1766247040595,-936.39,0.00041095,120]
[399291708,1766247040644,-936.39,0.00041095,120]
[399291715,1766247040699,-936.39,0.00041095,120]
[399291721,1766247040748,-936.39,0.00041095,120]
[399291728,1766247040799,-936.39,0.00041095,120]
[399291734,1766247040848,-936.39,0.00041095,120]
[399291741,1766247040898,-936.39,0.00041095,120]
[399291747,1766247040948,-936.39,0.00041095,120]
[399291753,1766247041000,-936.39,0.00041095,120]
[399291760,1766247041052,-936.39,0.00041095,120]
[399291766,1766247041104,-936.39,0.00041095,120]
[399291772,1766247041155,-936.39,0.00041095,120]
[399291779,1766247041206,-936.39,0.00041095,120]
[399291786,1766247041258,-936.39,0.00041095,120]
[399291792,1766247041309,-936.39,0.00041095,120]
[399291798,1766247041361,-936.39,0.00041095,120]
[399291805,1766247041412,-936.39,0.00041095,120]
[399291812,1766247041463,-936.39,0.00041095,120]
[399291818,1766247041515,-936.60357568,0.00041095,120]
[399291825,1766247041565,-1014.97735836,0.00041095,120]
[399291831,1766247041618,-500.0,0.00041095,120]
[399291838,1766247041669,-500.0,0.00041095,120]
[399291844,1766247041719,-500.0,0.00041095,120]
[399291850,1766247041770,-500.0,0.00041095,120]
[399291857,1766247041822,-500.0,0.00041095,120]
[399291864,1766247041873,-500.0,0.00041095,120]
[399291883,1766247042120,-500.0,0.00041095,120]
[399291884,1766247042173,-500.0,0.00041095,120]
[399291885,1766247042229,-500.0,0.00041095,120]
[399291887,1766247042284,-500.0,0.00041095,120]
[399291892,1766247042336,-500.0,0.00041095,120]
[399291900,1766247042389,-500.0,0.00041095,120]
[399291909,1766247042439,-500.0,0.00041095,120]
[399291915,1766247042490,-500.0,0.00041095,120]
[399291921,1766247042539,-349.36806557,0.00041095,120]
[399291928,1766247042591,-500.0,0.00041095,120]
[399291934,1766247042640,-500.0,0.00041095,120]
[399291940,1766247042689,-500.0,0.00041095,120]
[399291946,1766247042739,-500.0,0.00041095,120]
[399291953,1766247042788,-500.0,0.00041095,120]
[399291959,1766247042837,-500.0,0.00041095,120]
[399291965,1766247042886,-500.0,0.00041095,120]
[399291971,1766247042936,-500.0,0.00041095,120]
[399291977,1766247042986,-500.0,0.00041095,120]
[399291983,1766247043037,-500.0,0.00041095,120]
[399291990,1766247043089,-500.0,0.00041095,120]
[399291996,1766247043139,-500.0,0.00041095,120]
[399292003,1766247043189,-500.0,0.00041095,120]
[399292009,1766247043239,-500.0,0.00041095,120]
[399292015,1766247043290,-500.0,0.00041095,120]
[399292022,1766247043341,-500.0,0.00041095,120]
[399292028,1766247043391,-500.0,0.00041095,120]
[399292035,1766247043442,-500.0,0.00041095,120]
[399292040,1766247043492,-500.0,0.00041095,120]
[399292041,1766247043541,-440.54021472,0.00041095,120]
[399292042,1766247043592,-500.0,0.00041095,120]
[399292043,1766247043642,-500.0,0.00041095,120]
[399292044,1766247043691,-500.0,0.00041095,120]
[399292045,1766247043740,-500.0,0.00041095,120]
[399292046,1766247043790,-500.0,0.00041095,120]
[399292047,1766247043840,-500.0,0.00041095,120]
[399292048,1766247043891,-500.0,0.00041095,120]
[399292049,1766247043940,-500.0,0.00041095,120]
[399292050,1766247043991,-500.0,0.00041095,120]
[399292051,1766247044042,-500.0,0.00041095,120]
[399292052,1766247044095,-500.0,0.00041095,120]
[399292053,1766247044146,-500.0,0.00041095,120]
[399292054,1766247044197,-500.0,0.00041095,120]
[399292055,1766247044250,-500.0,0.00041095,120]
[399292056,1766247044301,-500.0,0.00041095,120]
[399292057,1766247044353,-500.0,0.00041095,120]
[399292058,1766247044405,-500.0,0.00041095,120]
[399292059,1766247044458,-617.22,0.00041095,120]
[399292060,1766247044508,-500.0,0.00041095,120]
[399292061,1766247044561,-500.0,0.00041095,120]
[399292062,1766247044611,-500.0,0.00041095,120]
[399292063,1766247044661,-312.54,0.00041095,120]
[399292064,1766247044711,-222.02,0.00041096,120]
[399292065,1766247044762,-488.93,0.00041096,120]
[399292066,1766247044811,-151.0,0.00041096,60]
[399292067,1766247044860,-151.0,0.00041096,60]
[399292068,1766247044911,-151.0,0.00041096,60]
[399292069,1766247044962,-151.0,0.00041096,60]
[399292070,1766247045017,-151.0,0.00041096,60]
[399292071,1766247045067,-151.0,0.00041096,60]
[399292072,1766247045116,-218.897106,0.00041096,60]
[399292073,1766247045169,-1000.0,0.00041096,120]
[399292074,1766247045221,-1164.0,0.00041096,105]
[399292075,1766247045275,-1084.5,0.00041096,108]
[399292076,1766247045325,-758.5,0.00041096,84]
[399292077,1766247045377,-1075.5,0.00041096,87]
[399292078,1766247045429,-766.0,0.00041096,60]
[399292079,1766247045480,-1144.0,0.00041096,73]
[399292080,1766247045531,-1202.5,0.00041096,65]
[399292081,1766247045582,-1156.5,0.00041096,90]
[399292082,1766247045633,-877.0,0.00041096,60]
[399292083,1766247045684,-1178.5,0.00041096,52]
[399292084,1766247045734,-908.0,0.00041096,83]
[399292085,1766247045784,-867.0,0.00041096,119]
[399292086,1766247045834,-880.5,0.00041096,75]
[399292087,1766247045884,-442.83528761,0.00041096,69]
[399292092,1766247045934,-155.59845654,0.00041096,102]
[399292098,1766247045985,-334.5,0.00041096,107]
[399292104,1766247046037,-177.0,0.000411,120]
[399292111,1766247046089,-163.0,0.000411,120]
[399292117,1766247046143,-150.0,0.00041123,120]
[399292119,1766247046196,-200.0,0.00041142,120]
[399292120,1766247046249,-150.22,0.00041173,120]
[399292126,1766247046301,-5000.0,0.000412,120]
[399292128,1766247046353,-1236.0,0.00041241,30]
[399292129,1766247046407,-150.22,0.00041273,120]
[399292130,1766247046459,-500.0,0.00041315,30]
[399292131,1766247046512,-150.22,0.00041373,120]
[399292132,1766247046562,-607.52958515,0.00041401,30]
[399292133,1766247046612,-54025.9747442,0.0004142,120]
[399292134,1766247046664,-150.22,0.00041473,120]
[399292135,1766247046715,-137396.67666329,0.000415,30]
[399292136,1766247046767,-470092.72432565,0.000415,30]
[399292141,1766247047708,300.0,0.0004292,30]
[399292142,1766247047838,300.0,0.0004292,30]
[399292143,1766247047922,400.3644464,0.0004292,30]
[399292144,1766247050367,-152.96,0.00010773,2]
[399292145,1766247050377,-152.96,0.00011172,2]